bitfinex/quotes_ETHUSD_20250329
["timestamp","ask_amount","ask_price","bid_price","bid_amount"]
[1743270599889,5.49673,1819.3,1819.0,0.7501]
[1743270600061,5.49722,1819.1,1819.0,0.7501]
[1743270600278,5.49704,1819.2,1819.0,0.7501]
[1743270600485,10.99424,1819.2,1818.8,6.24808]
[1743270600800,5.49704,1819.2,1818.9,5.49771]
[1743270601097,8.49602,1819.5,1818.8,0.7501]
[1743270601301,3.55,1819.5,1818.8,6.97654]
[1743270601618,5.49709,1819.2,1818.9,5.4978]
[1743270602402,5.49782,1818.9,1818.6,0.7501]
[1743270602602,10.99492,1819.1,1818.7,12.03138]
[1743270602762,5.49754,1819.0,1818.7,6.533]
[1743270603164,5.49754,1819.0,1818.7,12.03142]
[1743270603403,3.0,1819.3,1819.0,5.4973]
[1743270603578,5.49708,1819.2,1818.8,5.49796]
[1743270603904,5.49723,1819.1,1818.8,5.49796]
[1743270605001,3.0,1819.3,1818.8,0.7768]
[1743270605305,10.99479,1819.1,1818.7,12.03129]
[1743270605599,10.99479,1819.1,1818.7,12.03041]
[1743270605600,5.49772,1819.0,1818.7,12.03041]
[1743270606200,5.49724,1819.1,1818.7,17.52869]
[1743270606368,5.49724,1819.1,1818.7,17.52856]
[1743270606570,10.99464,1819.1,1818.7,12.03028]
[1743270606800,5.49779,1819.0,1818.6,0.7768]
[1743270607002,5.49779,1819.0,1818.6,6.533]
[1743270607210,5.49791,1818.9,1818.6,12.0317]
[1743270607377,5.49779,1819.0,1818.7,5.49841]
[1743270607582,5.49806,1818.9,1818.6,6.533]
[1743270607972,5.49817,1818.8,1818.6,6.533]
[1743270608173,5.49843,1818.7,1818.5,6.532]
[1743270608404,1.099623,1818.8,1818.5,12.0308]
[1743270608704,3.0,1818.9,1818.5,6.532]
[1743270608871,3.0,1818.9,1818.7,5.49842]
[1743270609306,10.99526,1819.0,1818.6,10.99734]
[1743270609601,5.49756,1819.0,1818.6,5.49859]
[1743270609799,5.49756,1819.0,1818.7,5.49842]
[1743270610005,5.49756,1819.0,1818.6,10.99719]
[1743270610169,5.49756,1819.0,1818.7,5.49839]
[1743270610581,5.49846,1818.7,1818.5,6.532]
[1743270610812,5.49846,1818.7,1818.4,0.7768]
[1743270610813,5.49872,1818.7,1818.4,0.7768]
[1743270611012,5.49819,1818.8,1818.4,0.7768]
[1743270611317,5.49764,1819.0,1818.6,5.49856]
[1743270611528,6.18785144,1819.5,1819.1,5.49696]
[1743270611686,0.28745852,1819.5,1818.9,6.531]
[1743270611888,5.49649,1819.4,1819.0,10.99472]
[1743270612083,5.49667,1819.3,1819.0,5.49732]
[1743270612291,5.49667,1819.3,1818.9,17.52647]
[1743270612796,6.595974,1819.3,1818.9,12.02865]
[1743270613118,5.49692,1819.2,1818.9,12.02882]
[1743270613317,5.49734,1819.1,1818.9,6.531]
[1743270613622,5.49823,1818.8,1818.6,6.531]
[1743270614290,5.49843,1818.7,1818.6,6.531]
[1743270614491,6.04793,1818.9,1818.5,5.49885]
[1743270614692,5.4983,1818.8,1818.5,6.531]
[1743270615326,1.704548,1818.9,1818.3,0.8132]
[1743270615526,5.49934,1818.4,1818.1,5.50022]
[1743270615696,5.49913,1818.5,1818.2,5.4999]
[1743270616328,5.49913,1818.5,1818.2,5.49994]
[1743270616526,3.0,1818.7,1818.5,5.49903]
[1743270616695,5.4983,1818.8,1818.5,5.49898]
[1743270617293,5.49844,1818.7,1818.4,6.31253]
[1743270617521,5.4983,1818.8,1818.4,11.81165]
[1743270617844,5.49846,1818.7,1818.5,6.53]
[1743270618050,5.49814,1818.8,1818.5,6.53]
[1743270618236,10.99648,1818.8,1818.5,6.53]
[1743270618437,8.49792,1818.9,1818.6,5.49868]
[1743270618744,3.0,1818.9,1818.5,12.02889]
[1743270618948,8.49792,1818.9,1818.5,12.02897]
[1743270619259,3.0,1818.9,1818.5,6.53]
[1743270619455,3.55,1819.1,1818.6,5.49854]
[1743270619750,6.04715,1819.2,1818.6,5.49854]
[1743270619751,8.498,1818.9,1818.6,5.49854]
[1743270620446,8.49785,1818.9,1818.6,5.49854]
[1743270620642,3.0,1818.9,1818.6,10.99715]
[1743270620849,3.0,1818.9,1818.6,5.49854]
[1743270621021,8.49784,1818.9,1818.6,5.49854]
[1743270621342,5.49816,1818.8,1818.5,6.53]
[1743270621580,5.49861,1818.7,1818.4,0.8132]
[1743270621721,5.49895,1818.6,1818.3,6.529]
[1743270622248,5.49822,1818.8,1818.4,5.49909]
[1743270622414,3.0,1818.9,1818.7,5.4984]
[1743270622610,5.85259,1819.0,1818.4,5.55431611]
[1743270622853,3.0,1819.0,1818.7,5.49823]
[1743270623028,3.0,1819.1,1818.8,5.498]
[1743270623225,3.0,1819.1,1818.8,17.524]
[1743270623429,6.595984,1819.3,1818.8,6.528]
[1743270623665,5.49782,1818.9,1818.8,6.528]
[1743270624372,5.49754,1819.0,1818.8,6.528]
[1743270624586,10.9953,1819.0,1818.8,6.528]
[1743270624746,11.545064,1819.0,1818.8,6.528]
[1743270624942,5.49726,1819.1,1818.8,6.528]
[1743270625148,5.49752,1819.0,1818.8,6.528]
[1743270625363,5.49726,1819.1,1818.8,6.528]
[1743270625572,10.99476,1819.1,1818.8,6.528]
[1743270626055,8.49703,1819.2,1818.8,6.528]
[1743270626383,5.49688,1819.3,1819.0,10.99496]
[1743270626691,10.99284,1819.4,1819.0,11.79386]
[1743270626995,10.99284,1819.4,1819.0,6.29638]
[1743270627293,10.99289,1819.4,1819.0,6.29614]
[1743270627500,5.49706,1819.2,1819.0,0.7989]
[1743270627856,10.99283,1819.4,1819.0,6.29623]
[1743270628056,5.4967,1819.3,1819.0,0.7989]
[1743270628284,5.49692,1819.2,1819.0,0.7989]
[1743270629397,5.4967,1819.3,1819.0,6.29641]
[1743270629761,10.99352,1819.3,1819.0,0.7989]
[1743270630405,10.99347,1819.3,1819.0,0.7989]
[1743270630708,10.99348,1819.3,1819.0,0.7989]
[1743270630914,5.4967,1819.3,1819.0,6.29639]
[1743270631112,5.49511,1819.8,1819.0,2.03328544]
[1743270631308,5.49682,1819.3,1819.0,0.7989]
[1743270631605,5.72170053,1819.2,1819.0,0.7989]
[1743270631904,0.22465053,1819.2,1819.0,5.49722]
[1743270632106,10.99295,1819.4,1819.0,5.49722]
[1743270632307,0.22465053,1819.3,1819.0,5.49722]
[1743270632604,0.22465053,1819.3,1818.8,12.78796]
[1743270632811,5.49718,1819.2,1818.8,12.78796]
[1743270633021,5.49718,1819.2,1818.8,18.28595]
[1743270633228,0.22465053,1819.1,1818.8,18.28595]
[1743270633517,10.99432,1819.2,1818.8,12.78789]
[1743270633681,5.72212053,1819.1,1818.8,0.7619]
[1743270634015,11.21959053,1819.1,1818.9,6.523]
[1743270634221,5.72212053,1819.1,1818.9,6.523]
[1743270634385,11.21956053,1819.1,1818.9,6.523]
[1743270634588,5.72209053,1819.1,1818.9,6.523]
[1743270634821,5.49779,1819.0,1818.6,5.49857]
[1743270635019,5.49798,1818.9,1818.6,0.8054]
[1743270635197,5.70754596,1818.9,1818.6,7.3274]
[1743270635590,5.49823,1818.8,1818.6,7.3274]
[1743270635922,0.20937714,1818.7,1818.6,7.3274]
[1743270636495,0.20937714,1818.7,1818.6,12.82613]
[1743270636720,5.49831,1818.8,1818.6,6.522]
[1743270636924,0.20937714,1818.7,1818.6,6.522]
[1743270637218,5.49787,1818.9,1818.6,6.522]
[1743270637730,0.20937714,1818.8,1818.6,6.522]
[1743270638385,5.70750714,1818.8,1818.6,6.522]
[1743270639118,0.20937714,1818.8,1818.6,6.522]
[1743270639818,5.70756714,1818.8,1818.6,6.522]
[1743270640014,5.49843,1818.7,1818.6,6.522]
[1743270640593,5.6890637,1818.7,1818.5,6.52]
[1743270640995,10.99767,1818.6,1818.1,6.30552]
[1743270641326,0.55,1818.4,1818.1,7.3254]
[1743270641492,0.55,1818.4,1817.9,0.8054]
[1743270641493,8.49967,1818.3,1817.9,0.8054]
[1743270641833,14.87159095,1818.2,1817.7,6.519]
[1743270641995,8.50029,1818.1,1817.7,6.519]
[1743270642398,0.18911884,1818.0,1817.7,6.519]
[1743270642724,0.18911884,1818.0,1817.9,5.50085]
[1743270642926,3.55,1818.5,1818.1,5.50001]
[1743270643128,0.18769828,1818.4,1818.3,5.49943]
[1743270643297,3.68145467,1819.0,1818.3,2.007243]
[1743270643497,5.49846,1818.7,1818.3,0.8054]
[1743270643706,0.73793507,1818.6,1818.3,0.8054]
[1743270644442,6.23679507,1818.6,1818.2,6.519]
[1743270644605,0.73793507,1818.6,1818.2,6.519]
[1743270645115,6.23669507,1818.6,1818.2,6.519]
[1743270645315,0.73793507,1818.6,1818.2,6.519]
[1743270645725,0.18793507,1818.6,1818.3,5.49937]
[1743270646042,0.18793507,1818.6,1818.4,5.4991]
[1743270646351,0.55,1818.8,1818.4,5.4991]
[1743270646653,3.18831392,1818.7,1818.3,5.49959]
[1743270646957,3.18831392,1818.7,1818.2,12.01888]
[1743270647120,3.18831392,1818.7,1818.2,12.01881]
[1743270647314,0.55,1818.6,1818.2,12.01866]
[1743270647847,0.18831392,1818.5,1818.3,5.49941]
[1743270649554,3.0,1818.7,1818.3,5.49941]
[1743270649874,0.18831392,1818.6,1818.3,5.49941]
[1743270650245,0.18831392,1818.6,1818.4,5.49908]
[1743270650636,0.55,1818.8,1818.4,5.49908]
[1743270650838,0.18831392,1818.5,1818.4,5.49908]
[1743270651040,0.55,1818.8,1818.4,5.49908]
[1743270651240,0.18831392,1818.5,1818.4,5.49908]
[1743270651774,0.55,1818.8,1818.4,5.49908]
[1743270651947,0.18831392,1818.5,1818.4,5.49908]
[1743270652149,0.55,1818.8,1818.4,5.49908]
[1743270652349,0.18831392,1818.7,1818.4,5.49908]
[1743270653381,0.18831392,1818.7,1818.4,10.99826]
[1743270653552,0.18831392,1818.7,1818.4,5.49908]
[1743270653751,0.18831392,1818.7,1818.6,5.49873]
[1743270653985,3.0,1819.1,1818.7,5.4983]
[1743270654379,3.0,1819.1,1818.7,17.5106]
[1743270654535,3.68145467,1819.2,1818.7,17.5106]
[1743270654536,3.68145467,1819.2,1818.8,5.49809]
[1743270654744,0.5505,1819.3,1819.0,5.49748]
[1743270654972,3.5505,1819.3,1818.9,5.49777]
[1743270655281,3.20032172,1819.4,1819.0,5.4974]
[1743270655578,3.20032172,1819.2,1818.7,12.82083]
[1743270655785,3.20032172,1819.0,1818.7,6.514]
[1743270655948,0.55,1818.9,1818.7,6.514]
[1743270656138,0.19309483,1818.8,1818.7,6.514]
[1743270657544,2.82812983,1818.8,1818.5,6.512]
[1743270657785,8.69141483,1818.8,1818.4,6.512]
[1743270657941,9.98444809,1818.8,1818.4,6.512]
[1743270658142,4.48612809,1818.8,1818.4,6.512]
[1743270658337,3.19309483,1818.8,1818.4,6.512]
[1743270658665,0.19309483,1818.8,1818.6,5.49869]
[1743270659581,0.19309483,1818.8,1818.5,5.49893]
[1743270660160,0.19309483,1818.8,1818.5,10.99786]
[1743270660361,0.19309483,1818.8,1818.5,5.49893]
[1743270660560,0.19309483,1818.8,1818.4,6.512]
[1743270660761,9.13452609,1818.8,1818.4,6.512]
[1743270660958,3.63629609,1818.8,1818.4,12.01133]
[1743270661256,3.19309483,1818.8,1818.4,6.512]
[1743270661566,3.19309483,1818.8,1818.4,12.01131]
[1743270662577,3.19309483,1818.8,1818.4,6.512]
[1743270662782,5.49846,1818.7,1818.4,6.512]
[1743270663287,0.1913909,1818.6,1818.4,6.512]
[1743270663893,0.1913909,1818.6,1817.7,0.8085]
[1743270663894,6.512,1818.4,1817.7,0.8085]
[1743270664171,6.05006,1818.2,1817.8,6.509]
[1743270664348,5.50024,1818.1,1817.8,6.509]
[1743270664555,14.68960774,1818.1,1817.7,0.8085]
[1743270664753,5.5011,1817.9,1817.5,0.7969]
[1743270665050,1.52396077,1818.1,1817.8,5.50112]
[1743270665250,3.55,1818.2,1817.9,5.50064]
[1743270665463,6.04976,1818.3,1817.8,0.7969]
[1743270665664,15.23854774,1818.3,1817.8,0.7969]
[1743270665878,5.49997,1818.2,1817.8,0.7969]
[1743270666277,3.0,1818.2,1817.9,5.50066]
[1743270666574,3.0,1818.2,1817.8,0.7969]
[1743270666790,3.0,1818.2,1817.8,6.29785]
[1743270667166,3.0,1818.4,1818.0,5.50039]
[1743270667489,3.68891774,1818.5,1818.1,6.508]
[1743270667690,5.86840177,1818.4,1818.0,6.508]
[1743270668395,3.0,1818.3,1818.0,6.508]
[1743270668984,3.0,1817.9,1817.5,5.50187]
[1743270669193,3.0,1817.9,1817.5,12.00987]
[1743270669375,3.0,1817.9,1817.5,17.51177]
[1743270669570,3.0,1817.9,1817.5,12.00987]
[1743270669877,3.0,1817.9,1817.5,17.51181]
[1743270670271,3.0,1817.9,1817.5,12.00987]
[1743270670592,0.18400409,1817.8,1817.5,6.508]
[1743270670785,5.68531409,1817.8,1817.5,6.507]
[1743270670981,7.59398174,1817.9,1817.5,12.00888]
[1743270671188,0.18400409,1817.7,1817.5,6.507]
[1743270671386,0.55,1817.8,1817.5,6.507]
[1743270671679,0.18300909,1817.6,1817.5,6.507]
[1743270671879,0.55,1817.8,1817.5,6.507]
[1743270672083,0.18300909,1817.6,1817.5,6.507]
[1743270672275,7.41574517,1817.8,1817.5,6.507]
[1743270672462,0.18300909,1817.6,1817.5,6.507]
[1743270672661,7.41574517,1817.8,1817.5,6.507]
[1743270672862,0.18106654,1817.6,1817.5,6.507]
[1743270673093,3.0,1817.9,1817.5,12.00882]
[1743270673297,4.301561,1817.5,1817.2,5.50293]
[1743270673600,0.18073479,1817.4,1817.1,6.506]
[1743270673788,5.68323479,1817.4,1817.0,6.506]
[1743270674094,9.19100774,1817.5,1816.7,0.005]
[1743270674095,5.50309,1817.2,1816.7,0.005]
[1743270674300,7.23891774,1817.3,1816.8,0.7969]
[1743270674301,7.41936816,1817.3,1816.8,0.7969]
[1743270674503,9.08135156,1817.3,1816.7,0.005]
[1743270674681,5.50359,1817.0,1816.7,0.005]
[1743270674881,9.74288774,1816.9,1816.7,0.005]
[1743270675088,8.50418,1816.8,1816.7,0.005]
[1743270675283,19.535876,1816.8,1816.7,0.005]
[1743270675487,20.26447754,1816.8,1816.7,0.005]
[1743270675800,23.26521407,1816.8,1816.7,0.005]
[1743270676313,23.68580302,1816.8,1816.7,0.005]
[1743270676607,23.68580302,1816.8,1816.3,0.005]
[1743270676608,12.74430774,1816.4,1816.3,0.005]
[1743270676811,9.51926774,1816.4,1816.3,0.005]
[1743270676981,15.19358426,1816.4,1816.3,0.005]
[1743270677178,16.71294269,1816.4,1816.3,0.005]
[1743270677610,5.5063,1816.1,1816.0,0.005]
[1743270677810,20.229517,1816.1,1816.0,0.005]
[1743270678113,24.08479789,1816.1,1816.0,0.005]
[1743270678405,24.50482703,1816.1,1816.0,0.005]
[1743270678614,3.307598,1815.1,1815.0,0.005]
[1743270678801,3.0,1815.1,1815.0,0.005]
[1743270679002,0.1649384,1815.1,1815.0,0.005]
[1743270679204,0.1649384,1815.1,1815.0,5.51464]
[1743270679508,3.0,1815.4,1815.0,0.005]
[1743270679509,3.0,1815.3,1815.0,0.005]
[1743270679712,0.14685798,1815.1,1815.0,0.005]
[1743270680200,9.23265177,1815.3,1815.0,0.005]
[1743270680201,0.55,1815.2,1815.0,0.005]
[1743270680526,0.14685798,1815.1,1815.0,0.005]
[1743270680687,22.85523798,1815.1,1815.0,0.005]
[1743270681005,3.69509725,1815.1,1815.0,0.005]
[1743270681205,11.72464571,1815.1,1815.0,0.005]
[1743270681410,4.61552797,1815.1,1815.0,0.005]
[1743270681591,7.98835197,1815.1,1815.0,0.005]
[1743270681778,16.62177071,1815.1,1815.0,0.005]
[1743270682210,16.07177071,1815.1,1815.0,0.005]
[1743270682420,16.62177071,1815.1,1815.0,0.005]
[1743270683119,11.11244071,1815.1,1815.0,0.005]
[1743270683282,15.90914271,1815.1,1815.0,0.005]
[1743270683683,15.42456371,1815.1,1815.0,0.005]
[1743270684303,20.93389371,1815.1,1815.0,0.005]
[1743270684504,13.81377571,1815.1,1815.0,0.005]
[1743270684708,15.23188671,1815.1,1815.0,0.005]
[1743270684984,0.14509725,1815.1,1815.0,0.005]
[1743270685283,3.68891774,1815.5,1815.0,6.32648]
[1743270685480,0.14352627,1815.1,1815.0,6.32664]
[1743270685680,0.55,1815.3,1815.0,0.817]
[1743270685891,0.14305476,1815.1,1815.0,0.005]
[1743270686097,0.55,1815.1,1815.0,0.005]
[1743270686489,0.68938967,1815.1,1815.0,0.005]
[1743270686685,6.19871967,1815.1,1815.0,0.005]
[1743270686886,21.91254241,1815.1,1815.0,0.005]
[1743270687109,20.04106727,1815.1,1815.0,0.005]
[1743270687286,10.37046927,1815.1,1815.0,0.005]
[1743270687498,15.87979927,1815.1,1815.0,0.005]
[1743270687692,27.27351927,1815.1,1815.0,0.005]
[1743270687921,22.34256227,1815.1,1815.0,0.005]
[1743270688093,6.25725311,1815.1,1815.0,0.005]
[1743270688298,3.68938967,1815.1,1815.0,0.005]
[1743270688487,9.19871967,1815.1,1815.0,0.005]
[1743270688886,12.88763741,1815.1,1815.0,0.005]
[1743270689424,8.64871967,1815.1,1815.0,0.005]
[1743270689611,4.00426164,1815.1,1815.0,0.005]
[1743270690141,10.06359164,1815.1,1815.0,0.005]
[1743270690290,22.79856138,1815.1,1815.0,0.005]
[1743270691700,9.06128,1814.5,1813.6,5.51386]
[1743270692021,5.51085,1814.6,1813.4,6.32639]
[1743270692022,6.06284,1814.0,1813.4,6.32639]
[1743270692222,3.55,1814.0,1813.4,0.812]
[1743270692421,0.55,1813.7,1813.4,0.812]
[1743270692590,0.13710336,1813.9,1813.4,0.812]
[1743270692791,0.55,1813.6,1813.4,0.812]
[1743270692987,0.606365,1813.6,1813.4,0.812]
[1743270693233,0.55,1813.5,1813.1,6.508]
[1743270693434,0.55,1813.5,1812.8,1.59179111]
[1743270693435,0.12928862,1813.5,1813.3,6.32657]
[1743270693733,0.12928862,1813.5,1813.0,0.05514409]
[1743270693891,3.68891774,1813.6,1812.9,6.32802]
[1743270694091,0.12924095,1813.4,1813.3,6.3268]
[1743270694316,0.11587801,1813.5,1813.4,5.5145]
[1743270694532,3.68891774,1814.4,1813.8,5.51311]
[1743270694703,6.062385,1814.5,1813.9,5.51279]
[1743270694911,3.0,1814.2,1813.8,0.7804]
[1743270695113,0.36562424,1814.2,1813.9,11.02557]
[1743270695406,0.10624239,1814.1,1813.9,5.51271]
[1743270695601,0.10624239,1814.1,1813.8,0.7804]
[1743270695802,0.10624239,1814.1,1813.7,12.02256]
[1743270695803,9.75171774,1814.0,1813.4,12.80485]
[1743270696006,0.55,1813.8,1813.4,6.29487]
[1743270696221,0.55,1813.8,1813.4,0.7804]
[1743270696530,0.55,1813.8,1813.0,0.7804]
[1743270696531,3.55,1813.4,1813.0,0.7804]
[1743270696735,12.75355774,1813.4,1812.8,13.30672]
[1743270696939,6.06553,1813.1,1812.8,0.5]
[1743270697094,3.55,1813.1,1812.8,0.5]
[1743270697294,0.55,1812.9,1812.8,0.5]
[1743270697537,6.672593,1812.9,1812.8,0.5]
[1743270697706,0.55,1812.9,1812.8,0.5]
[1743270698059,0.65605117,1812.9,1812.8,0.5]
[1743270698444,0.10605117,1812.9,1812.8,0.5]
[1743270698725,0.10605117,1812.9,1812.8,6.79672]
[1743270698926,5.92463431,1814.4,1813.3,0.7804]
[1743270699126,5.51216,1814.2,1813.6,5.51376]
[1743270699335,0.551085,1814.5,1814.1,5.5122]
[1743270699509,5.51102,1814.6,1814.0,5.51247]
[1743270699708,5.50914,1815.2,1814.6,5.51067]
[1743270699908,5.50913,1815.2,1814.6,5.51074]
[1743270700234,3.0,1815.1,1814.6,5.51074]
[1743270700440,0.55,1814.9,1814.4,12.02244]
[1743270700643,11.01975,1815.0,1814.4,12.02231]
[1743270700804,6.611835,1815.0,1814.4,12.02231]
[1743270701010,5.50874,1815.3,1814.6,5.51059]
[1743270701011,5.50879,1815.3,1814.6,5.51059]
[1743270701212,5.50951,1815.1,1814.7,0.7804]
[1743270701516,5.5098,1815.0,1814.7,0.7804]
[1743270701716,5.50903,1815.2,1814.4,7.2904]
[1743270701917,5.50933,1815.1,1814.4,7.2904]
[1743270702143,5.51015,1814.9,1814.4,7.2904]
[1743270702311,9.060743,1815.0,1814.1,0.7804]
[1743270702312,8.51071,1814.7,1814.1,0.7804]
[1743270702512,3.55,1814.7,1814.1,7.2904]
[1743270702730,3.0,1814.8,1814.3,5.51162]
[1743270702924,0.55,1814.7,1814.3,5.51162]
[1743270703132,3.550933,1815.0,1814.5,5.51108]
[1743270703541,9.060683,1815.0,1814.4,5.5113]
[1743270703653,0.55,1814.9,1814.5,5.511]
[1743270704009,0.55,1814.9,1814.4,5.51128]
[1743270704239,0.55,1814.7,1814.3,5.51164]
[1743270705040,0.55,1814.7,1814.4,5.5113]
[1743270705246,0.55,1814.9,1814.4,5.51126]
[1743270705836,0.55,1814.9,1814.3,5.51173]
[1743270706039,0.55,1814.9,1814.3,6.062903]
[1743270706341,0.55,1814.7,1814.3,6.062903]
[1743270706533,0.55,1814.7,1814.3,5.51173]
[1743270706731,0.55,1814.7,1814.3,5.5116]
[1743270706937,0.55,1814.7,1814.4,5.51128]
[1743270707613,0.55,1814.7,1814.5,5.51108]
[1743270708443,0.55,1814.9,1814.3,5.51174]
[1743270708647,5.511,1814.6,1814.1,0.7804]
[1743270708831,5.511,1814.6,1814.1,6.29267]
[1743270709147,3.0,1814.8,1814.1,0.83552183]
[1743270709459,0.55,1814.9,1814.5,5.51111]
[1743270709625,3.0,1815.1,1814.7,5.51055]
[1743270710039,3.0,1815.1,1814.6,6.32839]
[1743270710040,1.21221322,1815.4,1814.9,5.50984]
[1743270710243,5.50856,1815.4,1814.9,5.50972]
[1743270710557,5.50845,1815.4,1814.9,5.5098]
[1743270710945,5.50845,1815.4,1814.8,5.51005]
[1743270711255,3.0,1815.3,1814.9,5.50965]
[1743270711416,5.50816,1815.5,1815.0,5.50961]
[1743270711612,5.50789,1815.6,1815.1,5.50926]
[1743270711833,3.0,1815.4,1814.9,6.32756]
[1743270712143,5.50764,1815.7,1815.0,6.506]
[1743270712349,0.550764,1815.7,1815.3,5.50872]
[1743270712532,0.550764,1815.7,1815.2,5.5088]
[1743270712739,3.550764,1815.7,1815.3,5.50868]
[1743270712933,29.171,1816.0,1815.3,5.50862]
[1743270713137,3.0,1815.8,1815.3,5.50862]
[1743270713374,0.55,1815.7,1815.2,11.01764]
[1743270713574,5.50766,1815.7,1815.1,5.50923]
[1743270713776,3.55,1815.8,1815.3,5.50851]
[1743270714076,0.355,1815.7,1815.3,5.50851]
[1743270714281,5.50583,1816.3,1815.4,0.8178]
[1743270714439,5.50569,1816.3,1815.5,5.508]
[1743270714639,3.0,1816.1,1815.6,5.5077]
[1743270714842,5.50606,1816.2,1815.7,5.50733]
[1743270715034,8.01872774,1816.7,1815.7,5.50737]
[1743270715265,11.01169,1816.3,1815.7,5.50734]
[1743270715480,5.506,1816.2,1815.7,5.50734]
[1743270715639,11.01218,1816.2,1815.6,12.01264]
[1743270715967,11.01166,1816.3,1815.7,5.50736]
[1743270716137,5.50618,1816.2,1815.6,12.01272]
[1743270716334,3.0,1816.1,1815.7,5.50744]
[1743270716537,0.550618,1816.2,1815.8,5.50709]
[1743270716773,0.550618,1816.2,1815.8,11.83196]
[1743270716774,0.55,1816.1,1815.8,11.83196]
[1743270716959,0.55,1816.1,1815.8,6.32487]
[1743270717163,0.10871858,1816.0,1815.8,6.32487]
[1743270717544,0.550618,1816.2,1815.8,6.32487]
[1743270717852,0.10871858,1816.1,1815.8,6.32487]
[1743270718061,0.55,1816.0,1815.5,6.32571]
[1743270718263,5.50895,1815.3,1814.9,0.8178]
[1743270718581,0.550895,1815.2,1814.8,5.51008]
[1743270718739,0.55,1815.1,1814.8,5.51008]
[1743270718941,0.67065313,1815.1,1814.9,5.50992]
[1743270719269,0.12065313,1815.1,1815.0,5.50964]
[1743270719686,0.55,1815.5,1815.1,5.50913]
[1743270719888,0.905,1815.5,1815.1,5.50913]
[1743270720061,0.905,1815.5,1814.8,5.51005]
[1743270720268,0.905,1815.5,1814.7,6.32818]
[1743270720269,3.55,1815.2,1814.7,6.32818]
[1743270720465,9.05914,1815.2,1814.7,6.32818]
[1743270720696,5.51039,1814.8,1814.4,0.8178]
[1743270720900,3.55,1814.6,1813.6,6.74940583]
[1743270721082,5.51027,1814.8,1813.7,12.01558]
[1743270721389,6.06086,1814.6,1814.0,5.51247]
[1743270721598,3.0,1815.1,1813.8,0.87292486]
[1743270721750,3.0,1814.6,1814.1,5.51216]
[1743270721957,3.55,1814.9,1814.4,5.51123]
[1743270722158,5.51074,1814.7,1814.3,0.8178]
[1743270722456,0.55,1814.7,1814.3,7.3198]
[1743270722854,9.06033,1814.8,1814.2,5.51187]
[1743270723057,3.55,1814.8,1814.0,7.3198]
[1743270723284,6.06096,1814.6,1814.0,12.83225]
[1743270723487,5.5112,1814.5,1814.0,0.8178]
[1743270723697,5.51158,1814.4,1814.0,7.3198]
[1743270723859,3.0,1814.5,1814.0,7.3198]
[1743270724202,0.55,1814.6,1814.0,7.3198]
[1743270724203,0.55,1814.6,1814.2,5.51196]
[1743270724487,8.5098,1815.0,1814.5,5.51112]
[1743270724782,0.355,1815.5,1815.0,5.50963]
[1743270724960,5.50855,1815.4,1814.9,7.2712]
[1743270725169,3.0,1815.3,1814.9,7.2712]
[1743270725362,3.0,1815.3,1814.9,0.7692]
[1743270725558,3.3,1815.3,1814.9,0.7692]
[1743270725758,8.80886,1815.3,1814.9,0.7692]
[1743270725954,8.80875,1815.3,1814.7,11.02077]
[1743270726168,5.51096,1814.6,1814.3,0.42282111]
[1743270726382,5.51096,1814.6,1813.4,0.7692]
[1743270726383,3.55,1814.4,1813.4,0.7692]
[1743270726557,0.355,1814.3,1813.7,5.51333]
[1743270726763,3.0,1814.2,1813.8,5.51317]
[1743270727297,3.0,1814.2,1813.7,11.02677]
[1743270727501,6.0621,1814.2,1813.4,7.2702]
[1743270727684,3.355,1814.3,1813.8,5.51308]
[1743270727857,0.355,1814.3,1813.7,6.501]
[1743270728056,34.67549,1815.1,1814.5,5.51101]
[1743270728382,29.166,1815.1,1814.3,0.8199]
[1743270728581,0.3,1815.3,1814.8,5.51013]
[1743270728782,3.3,1815.3,1814.8,11.02024]
[1743270728955,3.0,1815.2,1814.8,6.33001]
[1743270729157,5.80894,1815.3,1814.8,11.84007]
[1743270729359,3.0,1815.2,1814.8,6.32996]
[1743270729559,5.80894,1815.3,1814.8,6.32996]
[1743270729759,0.3,1815.3,1814.9,5.50992]
[1743270729985,0.3,1815.3,1814.9,5.50984]
[1743270730300,5.86331,1815.5,1814.9,11.0197]
[1743270730486,5.50953,1815.1,1814.7,6.502]
[1743270730683,11.01906,1815.1,1814.7,6.502]
[1743270730889,5.50911,1815.2,1814.7,6.502]
[1743270731075,5.50914,1815.2,1814.7,6.502]
[1743270731277,1.156789,1815.2,1814.7,6.502]
[1743270731475,3.0,1815.4,1814.7,12.01239]
[1743270731794,6.05853,1815.4,1814.8,11.02002]
[1743270731997,0.55,1815.4,1814.9,5.50973]
[1743270732294,41.17918,1815.9,1814.9,5.50978]
[1743270732295,34.67791,1815.9,1814.9,5.50978]
[1743270732496,5.50796,1815.6,1815.1,5.50932]
[1743270732798,6.90951,1815.6,1815.1,11.01847]
[1743270733094,5.50729,1815.8,1815.2,5.50899]
[1743270733297,3.0,1815.6,1815.2,5.5089]
[1743270733457,3.0,1815.6,1815.2,5.50886]